[Event "57th Biel Festival ATO 2024"]
[Site "Biel"]
[Date "2024.07.18"]
[Round "3.18"]
[White "Gafner, Lancelot"]
[Black "Cho, Yeonhee"]
[Result "1/2-1/2"]
[ECO "C97"]
[WhiteElo "1864"]
[BlackElo "1686"]
[Annotator "NA RC"]
[PlyCount "89"]
[EventDate "2024.07.03"]
[EventType "swiss"]
[EventCountry "SUI"]
[SourceTitle "playchess.com"]
[Source "ChessBase"]
[SourceQuality "1"]
[TimeControl "40/5400+30:1800+30"]

1. e4 {[%emt 0:00:34]} e5 {[%emt 0:00:12]} 2. Nf3 {[%emt 0:00:09]} Nc6 {[%emt 0:00:04]} 3. Bb5 {[%emt 0:00:30]} a6 {[%emt 0:00:09]} 4. Ba4 {[%emt 0:00:23]} Nf6 {[%emt 0:00:30]} 5. O-O {[%emt 0:00:25]} b5 {[%emt 0:00:30]} 6. Bb3 {[%emt 0:00:23]} Be7 {[%emt 0:00:30]} 7. Re1 {[%emt 0:00:32]} d6 {[%emt 0:00:59]} 8. c3 {[%emt 0:00:12]} Na5 {[%emt 0:02:13]} 9. Bc2 {[%emt 0:00:42]} c5 {[%emt 0:00:14]} 10. h3 {[%emt 0:06:18]} O-O {[%emt 0:00:53]} 11. d4 {[%emt 0:00:12]} Qc7 {[%emt 0:00:10]} 12. Nbd2 {[%emt 0:00:24]} Re8 {[%emt 0:04:45]} 13. Nf1 {[%emt 0:03:08]} cxd4 {[%emt 0:11:47]} 14. cxd4 {[%emt 0:01:00]} Nc4 {[%emt 0:15:49]} 15. Ne3 {[%emt 0:12:40]} Nxe3 {[%emt 0:00:43]} 16. Bxe3 {[%emt 0:00:16]} Bf8 {[%emt 0:06:57]} 17. d5 {[%emt 0:07:16]} Bb7 {[%emt 0:03:56]} 18. Qd2 {[%emt 0:05:29]} Rec8 {[%emt 0:04:16]} 19. Rac1 {[%emt 0:02:47]} Qd8 {[%emt 0:04:24]} 20. Bd3 {[%emt 0:07:20]} g6 {[%emt 0:06:25]} 21. Qb4 {[%emt 0:10:21]} Rcb8 {[%emt 0:15:20]} 22. Rc3 {[%emt 0:18:48]} Bxd5 {[%emt 0:09:44]} 23. exd5 {[%emt 0:02:00]} Nxd5 {[%emt 0:00:04]} 24. Qb3 {[%emt 0:03:54]} Nxc3 {[%emt 0:00:04]} 25. bxc3 {[%emt 0:01:15]} b4 {[%emt 0:08:29]} 26. cxb4 {[%emt 0:05:06]} d5 {[%emt 0:02:20]} 27. Nxe5 {[%emt 0:05:31]} Bxb4 {[%emt 0:00:10]} 28. Rd1 {[%emt 0:01:32]} Bc5 {[%emt 0:00:43]} 29. Nc6 {[%emt 0:03:22]} Rxb3 {[%emt 0:00:20]} 30. Nxd8 {[%emt 0:00:06]} Rc3 {[%emt 0:00:41]} 31. Bxc5 {[%emt 0:01:53]} Rxc5 {[%emt 0:00:03]} 32. Nb7 {[%emt 0:00:10]} Rc7 {[%emt 0:00:46]} 33. Na5 {[%emt 0:00:31]} Rac8 {[%emt 0:01:29]} 34. Nb3 {[%emt 0:00:49]} Rc6 {[%emt 0:00:34]} 35. Na5 {[%emt 0:00:46]} Rc1 {[%emt 0:00:48]} 36. Rf1 {[%emt 0:00:59]} Rxf1+ {[%emt 0:00:01]} 37. Kxf1 {[%emt 0:00:41]} Rc1+ {[%emt 0:00:03]} 38. Ke2 {[%emt 0:00:17]} Ra1 {[%emt 0:00:05]} 39. Nc6 {[%emt 0:00:42]} Rxa2+ {[%emt 0:00:14]} 40. Ke3 {[%emt 0:00:10]} a5 {[%emt 0:02:28]} 41. Ne7+ {[%emt 0:30:17]} Kg7 {[%emt 0:30:28]} 42. Nxd5 {[%emt 0:00:05]} a4 {[%emt 0:00:00]} 43. Nc3 {[%emt 0:00:00]} Ra1 {[%emt 0:00:00]} 44. Bc2 {[%emt 0:00:00]} a3 {[%emt 0:00:00]} 45. Bb3 {[%emt 0:00:00]} 1/2-1/2

[Event "57th Biel Festival ATO 2024"]
[Site "Biel"]
[Date "2024.07.18"]
[Round "3.19"]
[White "Jaggy, Enzo"]
[Black "Primbetova, Raikhan"]
[Result "0-1"]
[ECO "D05"]
[WhiteElo "1835"]
[BlackElo "1534"]
[Annotator "NA RC"]
[PlyCount "92"]
[EventDate "2024.07.03"]
[EventType "swiss"]
[EventCountry "SUI"]
[SourceTitle "playchess.com"]
[Source "ChessBase"]
[SourceQuality "1"]
[TimeControl "40/5400+30:1800+30"]

1. d4 {[%emt 0:00:11]} Nf6 {[%emt 0:00:06]} 2. Nf3 {[%emt 0:00:04]} e6 {[%emt 0:00:08]} 3. e3 {[%emt 0:00:07]} c5 {[%emt 0:00:44]} 4. c3 {[%emt 0:00:05]} d5 {[%emt 0:00:13]} 5. Bd3 {[%emt 0:01:02]} Be7 {[%emt 0:04:24]} 6. Nbd2 {[%emt 0:01:07]} Nbd7 {[%emt 0:00:17]} 7. O-O {[%emt 0:00:31]} b6 {[%emt 0:00:38]} 8. Re1 {[%emt 0:00:33]} Bb7 {[%emt 0:00:20]} 9. e4 {[%emt 0:00:11]} dxe4 {[%emt 0:00:54]} 10. Nxe4 {[%emt 0:00:09]} O-O {[%emt 0:04:57]} 11. Nxf6+ {[%emt 0:05:14]} Nxf6 {[%emt 0:00:41]} 12. Bf4 {[%emt 0:00:49]} cxd4 {[%emt 0:19:03]} 13. Nxd4 {[%emt 0:00:56]} Qd5 {[%emt 0:01:21]} 14. Nf3 {[%emt 0:00:41]} Rad8 {[%emt 0:03:17]} 15. Be2 {[%emt 0:03:13]} Qf5 {[%emt 0:07:33]} 16. Qc1 {[%emt 0:00:14]} Nd5 {[%emt 0:03:07]} 17. Bg3 {[%emt 0:05:27]} Nf6 {[%emt 0:13:36]} 18. Nh4 {[%emt 0:09:23]} Qc5 {[%emt 0:00:45]} 19. b4 {[%emt 0:01:01]} Qc8 {[%emt 0:00:28]} 20. Bf3 {[%emt 0:01:09]} Bxf3 {[%emt 0:02:39]} 21. Nxf3 {[%emt 0:01:25]} Nd5 {[%emt 0:00:55]} 22. Qa3 {[%emt 0:02:11]} Qxc3 {[%emt 0:06:57]} 23. Qxa7 {[%emt 0:05:47]} Qxb4 {[%emt 0:00:52]} 24. Rab1 {[%emt 0:01:36]} Qa5 {[%emt 0:00:47]} 25. Qxa5 {[%emt 0:01:25]} bxa5 {[%emt 0:00:05]} 26. Ne5 {[%emt 0:00:37]} Bb4 {[%emt 0:07:06]} 27. Red1 {[%emt 0:02:28]} Nc3 {[%emt 0:00:28]} 28. Rxd8 {[%emt 0:00:06]} Rxd8 {[%emt 0:00:50]} 29. Nc6 {[%emt 0:01:01]} Nxb1 {[%emt 0:04:11]} 30. Nxd8 {[%emt 0:00:27]} Nc3 {[%emt 0:00:25]} 31. Bc7 {[%emt 0:00:29]} Nxa2 {[%emt 0:00:47]} 32. Nc6 {[%emt 0:00:08]} a4 {[%emt 0:00:29]} 33. Be5 {[%emt 0:01:44]} Bc5 {[%emt 0:00:57]} 34. Bd4 {[%emt 0:02:19]} Bxd4 {[%emt 0:00:26]} 35. Nxd4 {[%emt 0:02:12]} Nb4 {[%emt 0:00:28]} 36. Nb5 {[%emt 0:00:21]} Nc2 {[%emt 0:00:33]} 37. Nc3 {[%emt 0:00:08]} a3 {[%emt 0:00:30]} 38. Na2 {[%emt 0:00:33]} Kf8 {[%emt 0:01:07]} 39. Kf1 {[%emt 0:00:07]} Ke7 {[%emt 0:01:16]} 40. Ke2 {[%emt 0:00:06]} Kd6 {[%emt 0:00:26]} 41. Kd3 {[%emt 0:30:29]} Ne1+ {[%emt 0:30:37]} 42. Kc3 {[%emt 0:00:16]} Nxg2 {[%emt 0:00:14]} 43. Kb3 {[%emt 0:00:05]} h5 {[%emt 0:02:38]} 44. Kxa3 {[%emt 0:00:57]} Nh4 {[%emt 0:01:19]} 45. Nc3 {[%emt 0:00:45]} Nf3 {[%emt 0:01:54]} 46. Ne4+ {[%emt 0:00:52]} Ke5 {[%emt 0:00:16]} 0-1

[Event "57th Biel Festival ATO 2024"]
[Site "Biel"]
[Date "2024.07.18"]
[Round "3.20"]
[White "Svendsen, Hannelore"]
[Black "Papaux, Jeremie"]
[Result "0-1"]
[ECO "D00"]
[WhiteElo "1753"]
[BlackElo "1814"]
[Annotator "NA RC"]
[PlyCount "70"]
[EventDate "2024.07.03"]
[EventType "swiss"]
[EventCountry "SUI"]
[SourceTitle "playchess.com"]
[Source "ChessBase"]
[SourceQuality "1"]
[TimeControl "40/5400+30:1800+30"]

1. d4 {[%emt 0:00:05]} d5 {[%emt 0:00:05]} 2. g3 {[%emt 0:00:15]} Nf6 {[%emt 0:00:08]} 3. Bg2 {[%emt 0:00:20]} Bf5 {[%emt 0:00:06]} 4. c4 {[%emt 0:00:29]} e6 {[%emt 0:01:45]} 5. Nc3 {[%emt 0:00:47]} c6 {[%emt 0:00:20]} 6. Qb3 {[%emt 0:00:49]} Qb6 {[%emt 0:00:28]} 7. Nf3 {[%emt 0:00:57]} Be7 {[%emt 0:00:10]} 8. c5 {[%emt 0:01:21]} Qxb3 {[%emt 0:00:17]} 9. axb3 {[%emt 0:00:12]} a6 {[%emt 0:00:27]} 10. O-O {[%emt 0:01:36]} Nbd7 {[%emt 0:02:53]} 11. b4 {[%emt 0:03:05]} O-O {[%emt 0:01:17]} 12. Re1 {[%emt 0:05:30]} Ne4 {[%emt 0:01:20]} 13. h4 {[%emt 0:13:06]} h6 {[%emt 0:06:18]} 14. Bf4 {[%emt 0:46:53]} g5 {[%emt 1:21:56]} 15. Be3 {[%emt 0:22:35]} f6 {[%emt 0:00:30]} 16. h5 {[%emt 0:00:30]} Nxc3 {[%emt 0:00:30]} 17. bxc3 {[%emt 0:00:30]} Bg4 {[%emt 0:00:30]} 18. Nd2 {[%emt 0:00:30]} Bxh5 {[%emt 0:00:30]} 19. c4 {[%emt 0:00:30]} f5 {[%emt 0:00:30]} 20. f4 {[%emt 0:00:30]} gxf4 {[%emt 0:00:30]} 21. Bxf4 {[%emt 0:00:30]} Bg5 {[%emt 0:00:30]} 22. e3 {[%emt 0:00:30]} Nf6 {[%emt 0:00:30]} 23. Bf1 {[%emt 0:00:30]} Kh7 {[%emt 0:00:30]} 24. Nb3 {[%emt 0:00:30]} Bxf4 {[%emt 0:00:30]} 25. exf4 {[%emt 0:00:30]} Ne4 {[%emt 0:00:30]} 26. Kh2 {[%emt 0:00:30]} Bg4 {[%emt 0:00:30]} 27. cxd5 {[%emt 0:00:30]} exd5 {[%emt 0:00:30]} 28. Re3 {[%emt 0:00:30]} h5 {[%emt 0:00:30]} 29. Rae1 {[%emt 0:00:30]} Kg6 {[%emt 0:00:30]} 30. Nc1 {[%emt 0:00:30]} h4 {[%emt 0:00:30]} 31. gxh4 {[%emt 0:00:30]} Rh8 {[%emt 0:00:30]} 32. Nd3 {[%emt 0:00:30]} Rxh4+ {[%emt 0:00:30]} 33. Bh3 {[%emt 0:00:30]} Rah8 {[%emt 0:00:30]} 34. Ne5+ {[%emt 0:00:30]} Kf6 {[%emt 0:00:30]} 35. Nxg4+ {[%emt 0:00:30]} fxg4 {[%emt 0:00:30]} 0-1

[Event "57th Biel Festival ATO 2024"]
[Site "Biel"]
[Date "2024.07.18"]
[Round "3.21"]
[White "Wiesmann, Dominique"]
[Black "Van Bogaert, Olivier"]
[Result "1-0"]
[ECO "A07"]
[WhiteElo "1963"]
[BlackElo "1815"]
[Annotator "RC"]
[PlyCount "153"]
[EventDate "2024.07.03"]
[EventType "swiss"]
[EventCountry "SUI"]
[SourceTitle "playchess.com"]
[Source "ChessBase"]
[SourceQuality "1"]
[TimeControl "40/5400+30:1800+30"]

1. b3 {[%emt 0:00:02]} d5 {[%emt 0:00:20]} 2. Bb2 {[%emt 0:00:06]} Bf5 {[%emt 0:00:37]} 3. d3 {[%emt 0:00:12]} Nf6 {[%emt 0:00:10]} 4. Nf3 {[%emt 0:00:12]} h6 {[%emt 0:01:17]} 5. g3 {[%emt 0:00:16]} e6 {[%emt 0:00:32]} 6. Bg2 {[%emt 0:00:28]} Nbd7 {[%emt 0:01:12]} 7. O-O {[%emt 0:00:44]} c6 {[%emt 0:01:14]} 8. Nbd2 {[%emt 0:00:40]} Be7 {[%emt 0:00:32]} 9. Re1 {[%emt 0:02:06]} O-O {[%emt 0:03:25]} 10. e4 {[%emt 0:01:34]} dxe4 {[%emt 0:05:22]} 11. dxe4 {[%emt 0:00:10]} Bh7 {[%emt 0:01:16]} 12. e5 {[%emt 0:05:36]} Nd5 {[%emt 0:01:26]} 13. a3 {[%emt 0:01:15]} a5 {[%emt 0:13:38]} 14. Ne4 {[%emt 0:08:51]} Nc5 {[%emt 0:10:49]} 15. Nfd2 {[%emt 0:01:59]} Nxe4 {[%emt 0:03:27]} 16. Nxe4 {[%emt 0:01:26]} Nb6 {[%emt 0:08:50]} 17. Qe2 {[%emt 0:07:43]} Qc7 {[%emt 0:02:42]} 18. Red1 {[%emt 0:09:37]} Rad8 {[%emt 0:01:55]} 19. c4 {[%emt 0:00:44]} Rxd1+ {[%emt 0:11:17]} 20. Rxd1 {[%emt 0:00:14]} Rd8 {[%emt 0:00:11]} 21. Rxd8+ {[%emt 0:12:04]} Qxd8 {[%emt 0:00:08]} 22. Bc3 {[%emt 0:05:38]} Nc8 {[%emt 0:01:09]} 23. Bb2 {[%emt 0:02:33]} Nb6 {[%emt 0:03:13]} 24. h4 {[%emt 0:00:46]} Nc8 {[%emt 0:03:42]} 25. Bf3 {[%emt 0:03:26]} Qb6 {[%emt 0:02:46]} 26. Qd1 {[%emt 0:09:40]} Bxe4 {[%emt 0:04:27]} 27. Bxe4 {[%emt 0:00:06]} Bc5 {[%emt 0:00:40]} 28. Qd7 {[%emt 0:13:10]} Na7 {[%emt 0:00:24]} 29. Bc2 {[%emt 0:02:27]} Bxf2+ {[%emt 0:07:45]} 30. Kg2 {[%emt 0:00:08]} Bc5 {[%emt 0:00:05]} 31. Qd3 {[%emt 0:00:43]} Kf8 {[%emt 0:03:30]} 32. g4 {[%emt 0:03:45]} Ke7 {[%emt 0:02:47]} 33. Bc3 {[%emt 0:03:02]} Qd8 {[%emt 0:01:10]} 34. Qxd8+ {[%emt 0:01:15]} Kxd8 {[%emt 0:00:07]} 35. Bxa5+ {[%emt 0:00:01]} b6 {[%emt 0:01:27]} 36. Bb4 {[%emt 0:00:13]} Bxb4 {[%emt 0:00:48]} 37. axb4 {[%emt 0:00:01]} f6 {[%emt 0:01:56]} 38. Kf3 {[%emt 0:02:00]} Ke7 {[%emt 0:01:26]} 39. Kf4 {[%emt 0:02:18]} Kd7 {[%emt 0:00:37]} 40. g5 {[%emt 0:00:52]} hxg5+ {[%emt 0:01:37]} 41. hxg5 {[%emt 0:30:12]} fxe5+ {[%emt 0:30:20]} 42. Kxe5 {[%emt 0:00:04]} Ke7 {[%emt 0:00:00]} 43. Bd1 {[%emt 0:00:00]} Nc8 {[%emt 0:00:00]} 44. Bf3 {[%emt 0:00:00]} c5 {[%emt 0:00:00]} 45. bxc5 {[%emt 0:00:00]} bxc5 {[%emt 0:00:00]} 46. Bg4 {[%emt 0:00:00]} Na7 {[%emt 0:00:00]} 47. Bxe6 {[%emt 0:00:00]} Nc6+ {[%emt 0:00:00]} 48. Kd5 {[%emt 0:00:00]} Nd4 {[%emt 0:00:00]} 49. Bg4 {[%emt 0:00:00]} Nxb3 {[%emt 0:00:00]} 50. Bd1 {[%emt 0:00:00]} Nd2 {[%emt 0:00:00]} 51. Be2 {[%emt 0:00:00]} Nb3 {[%emt 0:00:00]} 52. Bh5 {[%emt 0:00:00]} Nd4 {[%emt 0:00:52]} 53. Bg4 {[%emt 0:00:00]} Nb3 {[%emt 0:01:10]} 54. Bf5 {[%emt 0:01:00]} Nd4 {[%emt 0:01:24]} 55. Bd3 {[%emt 0:01:02]} Nb3 {[%emt 0:00:35]} 56. g6 {[%emt 0:03:55]} Kf6 {[%emt 0:00:31]} 57. Bc2 {[%emt 0:00:08]} Nd4 {[%emt 0:02:51]} 58. Bd3 {[%emt 0:01:13]} Ne6 {[%emt 0:00:36]} 59. Bb1 {[%emt 0:00:19]} Ke7 {[%emt 0:00:34]} 60. Bf5 {[%emt 0:01:39]} Nd4 {[%emt 0:00:14]} 61. Bg4 {[%emt 0:00:08]} Nb3 {[%emt 0:00:07]} 62. Bd1 {[%emt 0:00:06]} Nd4 {[%emt 0:01:28]} 63. Kxc5 {[%emt 0:00:19]} Ne6+ {[%emt 0:00:33]} 64. Kb6 {[%emt 0:00:28]} Kd6 {[%emt 0:00:18]} 65. Bf3 {[%emt 0:02:01]} Nc5 {[%emt 0:00:14]} 66. Bd5 {[%emt 0:00:50]} Na4+ {[%emt 0:00:39]} 67. Kb7 {[%emt 0:00:50]} Nc5+ {[%emt 0:00:28]} 68. Kc8 {[%emt 0:00:08]} Na6 {[%emt 0:01:08]} 69. Kd8 {[%emt 0:00:21]} Nc7 {[%emt 0:00:05]} 70. Bf7 {[%emt 0:00:13]} Na6 {[%emt 0:00:41]} 71. Ke8 {[%emt 0:00:24]} Nc5 {[%emt 0:00:35]} 72. Kf8 {[%emt 0:00:19]} Nd3 {[%emt 0:00:38]} 73. Kxg7 {[%emt 0:00:12]} Ne5 {[%emt 0:00:08]} 74. Kf6 {[%emt 0:01:59]} Ng4+ {[%emt 0:00:52]} 75. Kg5 {[%emt 0:00:47]} Ne5 {[%emt 0:00:28]} 76. Kf5 {[%emt 0:00:28]} Nxf7 {[%emt 0:00:32]} 77. gxf7 {[%emt 0:00:06]} 1-0

[Event "57th Biel Festival ATO 2024"]
[Site "Biel"]
[Date "2024.07.18"]
[Round "3.22"]
[White "Loeffler, Helmut"]
[Black "King, Alexander"]
[Result "0-1"]
[ECO "D05"]
[WhiteElo "1745"]
[BlackElo "1935"]
[Annotator "RC"]
[PlyCount "92"]
[EventDate "2024.07.03"]
[EventType "swiss"]
[EventCountry "SUI"]
[SourceTitle "playchess.com"]
[Source "ChessBase"]
[SourceQuality "1"]
[TimeControl "40/5400+30:1800+30"]

1. d4 {[%emt 0:00:06]} d5 {[%emt 0:01:04]} 2. Nf3 {[%emt 0:00:11]} e6 {[%emt 0:00:33]} 3. e3 {[%emt 0:00:15]} c5 {[%emt 0:00:57]} 4. c3 {[%emt 0:01:17]} Nd7 {[%emt 0:01:16]} 5. Bd3 {[%emt 0:00:42]} Ngf6 {[%emt 0:00:19]} 6. Nbd2 {[%emt 0:00:40]} Qc7 {[%emt 0:04:13]} 7. O-O {[%emt 0:01:35]} e5 {[%emt 0:02:40]} 8. dxe5 {[%emt 0:05:14]} Nxe5 {[%emt 0:03:00]} 9. Nxe5 {[%emt 0:03:52]} Qxe5 {[%emt 0:00:04]} 10. Nf3 {[%emt 0:01:33]} Qc7 {[%emt 0:03:24]} 11. h3 {[%emt 0:02:07]} Be7 {[%emt 0:03:05]} 12. Re1 {[%emt 0:03:11]} O-O {[%emt 0:04:13]} 13. Qc2 {[%emt 0:03:51]} b6 {[%emt 0:02:53]} 14. c4 {[%emt 0:04:16]} dxc4 {[%emt 0:03:10]} 15. Bxc4 {[%emt 0:07:24]} Bb7 {[%emt 0:02:11]} 16. Be2 {[%emt 0:06:00]} Qc6 {[%emt 0:04:34]} 17. b3 {[%emt 0:07:28]} Nd5 {[%emt 0:04:18]} 18. a3 {[%emt 0:03:40]} Bf6 {[%emt 0:03:32]} 19. Bb2 {[%emt 0:02:34]} Rad8 {[%emt 0:01:21]} 20. Bxf6 {[%emt 0:02:35]} Qxf6 {[%emt 0:01:39]} 21. Rac1 {[%emt 0:02:15]} h6 {[%emt 0:05:33]} 22. Nh2 {[%emt 0:03:50]} Qe7 {[%emt 0:12:56]} 23. Bf3 {[%emt 0:01:27]} Bc8 {[%emt 0:00:39]} 24. Qe4 {[%emt 0:03:50]} Qxe4 {[%emt 0:04:56]} 25. Bxe4 {[%emt 0:00:14]} Nf6 {[%emt 0:00:09]} 26. Bf3 {[%emt 0:01:05]} Be6 {[%emt 0:00:33]} 27. Rb1 {[%emt 0:02:07]} Rd3 {[%emt 0:04:22]} 28. b4 {[%emt 0:04:58]} c4 {[%emt 0:04:18]} 29. a4 {[%emt 0:02:47]} Ra3 {[%emt 0:03:55]} 30. Bc6 {[%emt 0:04:14]} Rc8 {[%emt 0:01:09]} 31. b5 {[%emt 0:02:01]} Rxa4 {[%emt 0:05:03]} 32. Ra1 {[%emt 0:01:09]} Rxa1 {[%emt 0:01:20]} 33. Rxa1 {[%emt 0:00:02]} Rc7 {[%emt 0:01:18]} 34. Nf3 {[%emt 0:00:41]} Bf5 {[%emt 0:05:08]} 35. Ne5 {[%emt 0:02:23]} c3 {[%emt 0:01:12]} 36. f3 {[%emt 0:01:34]} Nd7 {[%emt 0:03:32]} 37. f4 {[%emt 0:03:42]} Nxe5 {[%emt 0:01:49]} 38. fxe5 {[%emt 0:00:14]} c2 {[%emt 0:01:25]} 39. Rc1 {[%emt 0:01:24]} Bd3 {[%emt 0:01:00]} 40. Kf2 {[%emt 0:00:02]} a6 {[%emt 0:00:30]} 41. e4 {[%emt 0:31:45]} Bxb5 {[%emt 0:03:37]} 42. Bxb5 {[%emt 0:00:00]} axb5 {[%emt 0:02:38]} 43. Ke2 {[%emt 0:00:00]} b4 {[%emt 0:01:01]} 44. Kd2 {[%emt 0:00:00]} b3 {[%emt 0:00:07]} 45. h4 {[%emt 0:00:00]} b2 {[%emt 0:01:14]} 46. Rxc2 {[%emt 0:00:00]} Rd7+ {[%emt 0:00:09]} 0-1

[Event "57th Biel Festival ATO 2024"]
[Site "Biel"]
[Date "2024.07.18"]
[Round "3.23"]
[White "Boyer, Jean-Francois"]
[Black "Bangerter, Daria"]
[Result "0-1"]
[ECO "B22"]
[WhiteElo "1742"]
[BlackElo "1931"]
[Annotator "RC"]
[PlyCount "63"]
[EventDate "2024.07.03"]
[EventType "swiss"]
[EventCountry "SUI"]
[SourceTitle "playchess.com"]
[Source "ChessBase"]
[SourceQuality "1"]
[TimeControl "40/5400+30:1800+30"]

1. e4 {[%emt 0:00:04]} c5 {[%emt 0:00:04]} 2. c3 {[%emt 0:01:31]} g6 {[%emt 0:00:51]} 3. d4 {[%emt 0:02:27]} cxd4 {[%emt 0:01:43]} 4. cxd4 {[%emt 0:01:29]} d5 {[%emt 0:01:34]} 5. e5 {[%emt 0:02:02]} Nc6 {[%emt 0:04:04]} 6. h3 {[%emt 0:02:15]} Nh6 {[%emt 0:05:20]} 7. Nf3 {[%emt 0:05:08]} Nf5 {[%emt 0:04:19]} 8. Nc3 {[%emt 0:07:58]} h6 {[%emt 0:07:36]} 9. g4 {[%emt 0:07:48]} Ng7 {[%emt 0:01:05]} 10. Qb3 {[%emt 0:04:49]} e6 {[%emt 0:05:01]} 11. a3 {[%emt 0:19:49]} Be7 {[%emt 0:12:06]} 12. Be3 {[%emt 0:04:11]} Bd7 {[%emt 0:05:14]} 13. Qd1 {[%emt 0:08:31]} Na5 {[%emt 0:06:36]} 14. b4 {[%emt 0:08:58]} Rc8 {[%emt 0:05:54]} 15. Nb5 {[%emt 0:02:41]} Nc4 {[%emt 0:08:06]} 16. Bxc4 {[%emt 0:01:19]} Rxc4 {[%emt 0:01:38]} 17. Nd6+ {[%emt 0:01:35]} Bxd6 {[%emt 0:00:16]} 18. exd6 {[%emt 0:00:08]} Rc6 {[%emt 0:14:00]} 19. Bf4 {[%emt 0:03:34]} g5 {[%emt 0:02:00]} 20. Bg3 {[%emt 0:02:55]} f6 {[%emt 0:02:10]} 21. Qd3 {[%emt 0:01:36]} Kf7 {[%emt 0:06:42]} 22. h4 {[%emt 0:01:10]} Qc8 {[%emt 0:01:49]} 23. Kd2 {[%emt 0:03:38]} Qg8 {[%emt 0:02:42]} 24. Rac1 {[%emt 0:00:57]} Ke8 {[%emt 0:00:54]} 25. b5 {[%emt 0:00:53]} Rb6 {[%emt 0:00:37]} 26. a4 {[%emt 0:00:48]} Qf7 {[%emt 0:00:36]} 27. Rc7 {[%emt 0:00:05]} Kf8 {[%emt 0:00:30]} 28. Rhc1 {[%emt 0:01:29]} Ne8 {[%emt 0:00:20]} 29. a5 {[%emt 0:01:35]} Rxb5 {[%emt 0:00:37]} 30. Qxb5 {[%emt 0:01:52]} Bxb5 {[%emt 0:00:11]} 31. Rxf7+ {[%emt 0:00:33]} Kxf7 {[%emt 0:00:04]} 32. Rc8 {[%emt 0:01:17]} 0-1

[Event "57th Biel Festival ATO 2024"]
[Site "Biel"]
[Date "2024.07.18"]
[Round "3.24"]
[White "Aegerter, Fabrice"]
[Black "Pavlov, Myroslav"]
[Result "1-0"]
[ECO "B07"]
[WhiteElo "1917"]
[BlackElo "1736"]
[Annotator "NA RC"]
[PlyCount "51"]
[EventDate "2024.07.03"]
[EventType "swiss"]
[EventCountry "SUI"]
[SourceTitle "playchess.com"]
[Source "ChessBase"]
[SourceQuality "1"]
[TimeControl "40/5400+30:1800+30"]

1. d4 {[%emt 0:00:08]} Nf6 {[%emt 0:00:02]} 2. Bf4 {[%emt 0:00:14]} g6 {[%emt 0:00:23]} 3. Nc3 {[%emt 0:00:26]} Bg7 {[%emt 0:00:56]} 4. e4 {[%emt 0:01:58]} d6 {[%emt 0:00:02]} 5. Qd2 {[%emt 0:00:09]} Nbd7 {[%emt 0:05:18]} 6. O-O-O {[%emt 0:01:29]} c5 {[%emt 0:07:10]} 7. dxc5 {[%emt 0:10:17]} Nxc5 {[%emt 0:11:41]} 8. e5 {[%emt 0:15:35]} Nfe4 {[%emt 0:08:41]} 9. Nxe4 {[%emt 0:01:48]} Nxe4 {[%emt 0:00:04]} 10. Qe1 {[%emt 0:00:39]} d5 {[%emt 0:21:19]} 11. Bb5+ {[%emt 0:01:07]} Kf8 {[%emt 0:00:03]} 12. Qxe4 {[%emt 0:01:07]} Qa5 {[%emt 0:03:50]} 13. Qxd5 {[%emt 0:04:19]} Be6 {[%emt 0:03:20]} 14. Qxb7 {[%emt 0:05:24]} Rc8 {[%emt 0:02:06]} 15. c4 {[%emt 0:05:44]} g5 {[%emt 0:07:18]} 16. Qa6 {[%emt 0:08:46]} Qc7 {[%emt 0:03:30]} 17. Bxg5 {[%emt 0:02:00]} Bxe5 {[%emt 0:02:21]} 18. Bh6+ {[%emt 0:01:37]} Kg8 {[%emt 0:01:25]} 19. Nf3 {[%emt 0:02:00]} Bf6 {[%emt 0:03:06]} 20. Rhe1 {[%emt 0:01:45]} Qc5 {[%emt 0:04:53]} 21. Rxe6 {[%emt 0:03:18]} Rb8 {[%emt 0:02:20]} 22. Rc6 {[%emt 0:02:03]} Qf5 {[%emt 0:01:01]} 23. Rd5 {[%emt 0:01:39]} Qg4 {[%emt 0:01:05]} 24. h3 {[%emt 0:00:24]} Qxg2 {[%emt 0:01:12]} 25. Rc8+ {[%emt 0:00:11]} Rxc8 {[%emt 0:00:06]} 26. Qxc8# {[%emt 0:00:11]} 1-0

[Event "57th Biel Festival ATO 2024"]
[Site "Biel"]
[Date "2024.07.18"]
[Round "3.25"]
[White "Suwendo, Poedjo"]
[Black "Leuenberger, Urs"]
[Result "0-1"]
[ECO "B25"]
[WhiteElo "1727"]
[BlackElo "1903"]
[Annotator "RC"]
[PlyCount "84"]
[EventDate "2024.07.03"]
[EventType "swiss"]
[EventCountry "SUI"]
[SourceTitle "playchess.com"]
[Source "ChessBase"]
[SourceQuality "1"]
[TimeControl "40/5400+30:1800+30"]

1. e4 {[%emt 0:00:12]} c5 {[%emt 0:00:19]} 2. Nc3 {[%emt 0:00:18]} d6 {[%emt 0:00:30]} 3. g3 {[%emt 0:01:29]} Nc6 {[%emt 0:00:42]} 4. Bg2 {[%emt 0:00:13]} Nf6 {[%emt 0:00:24]} 5. d3 {[%emt 0:00:13]} g6 {[%emt 0:00:41]} 6. Nge2 {[%emt 0:00:47]} Bg7 {[%emt 0:00:47]} 7. O-O {[%emt 0:00:13]} O-O {[%emt 0:00:19]} 8. Bg5 {[%emt 0:02:33]} h6 {[%emt 0:01:00]} 9. Bd2 {[%emt 0:00:59]} Rb8 {[%emt 0:01:46]} 10. a3 {[%emt 0:01:00]} b5 {[%emt 0:00:54]} 11. b4 {[%emt 0:01:08]} a5 {[%emt 0:02:47]} 12. bxc5 {[%emt 0:05:46]} dxc5 {[%emt 0:00:27]} 13. Rb1 {[%emt 0:01:21]} Ba6 {[%emt 0:04:43]} 14. Qc1 {[%emt 0:08:48]} Kh7 {[%emt 0:00:33]} 15. Be3 {[%emt 0:00:47]} Nd4 {[%emt 0:04:20]} 16. Bf4 {[%emt 0:06:00]} Nxe2+ {[%emt 0:12:07]} 17. Nxe2 {[%emt 0:00:06]} Rb6 {[%emt 0:07:17]} 18. Rd1 {[%emt 0:04:47]} Nd7 {[%emt 0:05:29]} 19. Be3 {[%emt 0:06:03]} e5 {[%emt 0:07:20]} 20. Qd2 {[%emt 0:00:35]} b4 {[%emt 0:05:52]} 21. axb4 {[%emt 0:04:31]} axb4 {[%emt 0:00:33]} 22. Bh3 {[%emt 0:00:32]} Rc6 {[%emt 0:02:00]} 23. Ra1 {[%emt 0:00:14]} Nb8 {[%emt 0:05:26]} 24. Nc1 {[%emt 0:06:53]} Qc7 {[%emt 0:05:51]} 25. Nb3 {[%emt 0:04:53]} Rd8 {[%emt 0:00:51]} 26. Bf1 {[%emt 0:01:57]} Bf8 {[%emt 0:03:19]} 27. Na5 {[%emt 0:00:44]} Rcd6 {[%emt 0:01:51]} 28. Qc1 {[%emt 0:00:48]} c4 {[%emt 0:04:23]} 29. d4 {[%emt 0:01:22]} exd4 {[%emt 0:05:03]} 30. Bf4 {[%emt 0:02:51]} Bb5 {[%emt 0:02:55]} 31. Rxd4 {[%emt 0:01:01]} Qb6 {[%emt 0:04:31]} 32. Rxd6 {[%emt 0:05:09]} Bxd6 {[%emt 0:00:47]} 33. Bxd6 {[%emt 0:01:27]} Rxd6 {[%emt 0:01:47]} 34. Bxc4 {[%emt 0:00:37]} Be8 {[%emt 0:01:25]} 35. Bd5 {[%emt 0:00:49]} Qd4 {[%emt 0:01:42]} 36. Nc4 {[%emt 0:03:16]} Rxd5 {[%emt 0:01:20]} 37. exd5 {[%emt 0:00:53]} Qxc4 {[%emt 0:00:11]} 38. Ra8 {[%emt 0:03:06]} Qxd5 {[%emt 0:01:25]} 39. Ra1 {[%emt 0:04:36]} Bc6 {[%emt 0:00:14]} 40. Kf1 {[%emt 0:00:12]} Nd7 {[%emt 0:01:45]} 41. Ke1 {[%emt 0:32:47]} Ne5 {[%emt 0:30:11]} 42. Qd1 {[%emt 0:00:47]} Nf3+ {[%emt 0:01:37]} 0-1